[Event "Titled Tuesday Blitz August 08 Late 2023"]
[White "Ward, Ieuan C"]
[Black "ChessSG1"]
[WhiteFideId "406627"]
[WhiteElo "2259"]
[BlackElo "2459"]
[Result "0-1"]
[Round "4"]
[TimeControl "180+1"]
[Date "2023.08.08"]
[WhiteClock "0:01:31"]
[BlackClock "0:01:52"]
[Board "144"]

1. e4 {[%clk 0:03:00]}  c5 {[%clk 0:02:59]} 2. Nf3 {[%clk 0:03:01]}  e6 {[%clk 0:03:00]} 3. d4 {[%clk 0:03:01]}  cxd4 {[%clk 0:03:01]} 4. c3 {[%clk 0:03:02]}  Nf6 {[%clk 0:03:00]} 5. e5 {[%clk 0:03:01]}  Nd5 {[%clk 0:03:01]} 6. cxd4 {[%clk 0:03:02]}  d6 {[%clk 0:03:01]} 7. Nc3 {[%clk 0:02:59]}  Nxc3 {[%clk 0:03:01]} 8. bxc3 {[%clk 0:03:00]}  Qc7 {[%clk 0:03:02]} 9. Bd2 {[%clk 0:02:59]}  Nd7 {[%clk 0:03:02]} 10. exd6 {[%clk 0:02:56]}  Bxd6 {[%clk 0:03:03]} 11. Bd3 {[%clk 0:02:56]}  b6 {[%clk 0:03:02]} 12. O-O {[%clk 0:02:55]}  Bb7 {[%clk 0:02:55]} 13. h3 {[%clk 0:02:56]}  O-O {[%clk 0:02:54]} 14. Rc1 {[%clk 0:02:56]}  Nf6 {[%clk 0:02:32]} 15. Re1 {[%clk 0:02:54]}  Bf4 {[%clk 0:02:26]} 16. Ne5 {[%clk 0:02:45]}  Bxd2 {[%clk 0:02:18]} 17. Qxd2 {[%clk 0:02:46]}  Rfd8 {[%clk 0:02:17]} 18. Qe2 {[%clk 0:02:38]}  Qd6 {[%clk 0:02:06]} 19. a4 {[%clk 0:02:25]}  Rac8 {[%clk 0:02:04]} 20. Ng4 {[%clk 0:02:15]}  Nxg4 {[%clk 0:02:04]} 21. Qxg4 {[%clk 0:02:16]}  Qa3 {[%clk 0:01:53]} 22. c4 {[%clk 0:01:31]}  Qxd3 {[%clk 0:01:52]} 0-1


[Site "https://www.chess.com"]

[Event "Titled Tuesday Blitz August 08 Late 2023"]
[White "Delorme, Axel"]
[Black "Vaglio Munoz, Jaime"]
[WhiteFideId "632023"]
[BlackFideId "6500145"]
[WhiteElo "2458"]
[BlackElo "2244"]
[Result "1-0"]
[Round "4"]
[TimeControl "180+1"]
[Date "2023.08.08"]
[WhiteClock "0:00:45"]
[BlackClock "0:00:08"]
[Board "146"]

1. e4 {[%clk 0:03:00]}  c5 {[%clk 0:03:00]} 2. Nf3 {[%clk 0:03:01]}  Qa5 {[%clk 0:03:00]} 3. Nc3 {[%clk 0:02:55]}  a6 {[%clk 0:02:59]} 4. g3 {[%clk 0:02:48]}  b5 {[%clk 0:02:59]} 5. Bg2 {[%clk 0:02:48]}  Bb7 {[%clk 0:02:59]} 6. d3 {[%clk 0:02:46]}  b4 {[%clk 0:02:59]} 7. Nd5 {[%clk 0:02:46]}  e6 {[%clk 0:02:59]} 8. Ne3 {[%clk 0:02:45]}  Nf6 {[%clk 0:02:59]} 9. O-O {[%clk 0:02:45]}  Be7 {[%clk 0:02:59]} 10. e5 {[%clk 0:02:43]}  Nd5 {[%clk 0:02:57]} 11. Nc4 {[%clk 0:02:44]}  Qc7 {[%clk 0:02:55]} 12. Bg5 {[%clk 0:02:44]}  O-O {[%clk 0:02:19]} 13. Bxe7 {[%clk 0:02:39]}  Nxe7 {[%clk 0:02:20]} 14. Nd6 {[%clk 0:02:36]}  Bd5 {[%clk 0:02:17]} 15. c4 {[%clk 0:02:32]}  bxc3 {[%clk 0:02:16]} 16. bxc3 {[%clk 0:02:33]}  Ng6 {[%clk 0:02:13]} 17. c4 {[%clk 0:02:30]}  Bc6 {[%clk 0:02:12]} 18. Qe2 {[%clk 0:02:09]}  f6 {[%clk 0:01:58]} 19. d4 {[%clk 0:01:52]}  cxd4 {[%clk 0:01:55]} 20. c5 {[%clk 0:01:52]}  fxe5 {[%clk 0:01:31]} 21. Nxe5 {[%clk 0:01:49]}  Nxe5 {[%clk 0:01:23]} 22. Qxe5 {[%clk 0:01:48]}  Bxg2 {[%clk 0:01:22]} 23. Kxg2 {[%clk 0:01:49]}  Nc6 {[%clk 0:01:22]} 24. Qe4 {[%clk 0:01:48]}  e5 {[%clk 0:01:16]} 25. Rab1 {[%clk 0:01:44]}  Rab8 {[%clk 0:01:06]} 26. Qd5+ {[%clk 0:01:39]}  Kh8 {[%clk 0:01:02]} 27. Rxb8 {[%clk 0:01:26]}  Qxb8 {[%clk 0:00:59]} 28. Nf7+ {[%clk 0:01:26]}  Rxf7 {[%clk 0:00:59]} 29. Qxf7 {[%clk 0:01:26]}  Qd8 {[%clk 0:00:47]} 30. Rb1 {[%clk 0:01:21]}  h6 {[%clk 0:00:46]} 31. Rb7 {[%clk 0:01:20]}  Nb8 {[%clk 0:00:32]} 32. c6 {[%clk 0:01:09]}  Nxc6 {[%clk 0:00:25]} 33. Rxd7 {[%clk 0:01:05]}  Qg8 {[%clk 0:00:21]} 34. Qg6 {[%clk 0:00:50]}  Nb8 {[%clk 0:00:16]} 35. Re7 {[%clk 0:00:47]}  Qd5+ {[%clk 0:00:15]} 36. Kg1 {[%clk 0:00:46]}  Nd7 {[%clk 0:00:07]} 37. Re8+ {[%clk 0:00:45]}  Qg8 {[%clk 0:00:07]} 38. Rxg8+ {[%clk 0:00:44]}  Kxg8 {[%clk 0:00:08]} 39. Qe6+ {[%clk 0:00:45]}  Kf8 {[%clk 0:00:08]} 40. Qxd7 {[%clk 0:00:46]}  g6 {[%clk 0:00:06]} 41. Qd6+ {[%clk 0:00:46]}  Kf7 {[%clk 0:00:06]} 42. Qxe5 {[%clk 0:00:47]}  d3 {[%clk 0:00:07]} 43. Qd5+ {[%clk 0:00:47]}  Kf6 {[%clk 0:00:07]} 44. Qxd3 {[%clk 0:00:48]}  Kg5 {[%clk 0:00:08]} 45. Qxa6 {[%clk 0:00:47]}  Kg4 {[%clk 0:00:08]} 46. Qxg6+ {[%clk 0:00:46]}  Kh3 {[%clk 0:00:08]} 47. Qh5# {[%clk 0:00:45]} 1-0


[Site "https://www.chess.com"]

[Event "Titled Tuesday Blitz August 08 Late 2023"]
[White "Kohler, Aran"]
[Black "Prithu Gupta"]
[WhiteFideId "1002856"]
[BlackFideId "46618546"]
[WhiteElo "2255"]
[BlackElo "2454"]
[Result "1/2-1/2"]
[Round "4"]
[TimeControl "180+1"]
[Date "2023.08.08"]
[WhiteClock "0:00:10"]
[BlackClock "0:00:06"]
[Board "147"]

1. d4 {[%clk 0:03:00]}  Nf6 {[%clk 0:02:58]} 2. Nf3 {[%clk 0:03:00]}  d5 {[%clk 0:02:58]} 3. Bg5 {[%clk 0:02:59]}  e6 {[%clk 0:02:58]} 4. Nbd2 {[%clk 0:02:59]}  Be7 {[%clk 0:02:58]} 5. c3 {[%clk 0:02:59]}  O-O {[%clk 0:02:58]} 6. e3 {[%clk 0:02:58]}  c5 {[%clk 0:02:58]} 7. Bd3 {[%clk 0:02:58]}  b6 {[%clk 0:02:58]} 8. h4 {[%clk 0:02:57]}  Ba6 {[%clk 0:02:58]} 9. Bc2 {[%clk 0:02:56]}  Nbd7 {[%clk 0:02:56]} 10. Ne5 {[%clk 0:02:54]}  Nxe5 {[%clk 0:02:56]} 11. dxe5 {[%clk 0:02:53]}  Nd7 {[%clk 0:02:56]} 12. Qh5 {[%clk 0:02:43]}  g6 {[%clk 0:02:55]} 13. Qh6 {[%clk 0:02:38]}  Nxe5 {[%clk 0:02:54]} 14. Bxe7 {[%clk 0:02:26]}  Qxe7 {[%clk 0:02:53]} 15. O-O-O {[%clk 0:02:19]}  Nd3+ {[%clk 0:02:48]} 16. Bxd3 {[%clk 0:02:16]}  Bxd3 {[%clk 0:02:48]} 17. Nf3 {[%clk 0:02:16]}  Bf5 {[%clk 0:02:39]} 18. h5 {[%clk 0:02:06]}  f6 {[%clk 0:02:38]} 19. hxg6 {[%clk 0:02:05]}  Bxg6 {[%clk 0:02:37]} 20. Nh4 {[%clk 0:02:03]}  Qg7 {[%clk 0:02:33]} 21. Nxg6 {[%clk 0:01:59]}  hxg6 {[%clk 0:02:33]} 22. Qh3 {[%clk 0:01:58]}  Kf7 {[%clk 0:02:32]} 23. Qg3 {[%clk 0:01:55]}  g5 {[%clk 0:02:20]} 24. e4 {[%clk 0:01:54]}  d4 {[%clk 0:02:04]} 25. cxd4 {[%clk 0:01:48]}  cxd4 {[%clk 0:02:04]} 26. Rxd4 {[%clk 0:01:48]}  Kg6 {[%clk 0:02:00]} 27. f4 {[%clk 0:01:44]}  Qc7+ {[%clk 0:01:55]} 28. Kb1 {[%clk 0:01:42]}  Qxf4 {[%clk 0:01:49]} 29. Qd3 {[%clk 0:01:40]}  Rh8 {[%clk 0:01:40]} 30. e5+ {[%clk 0:01:30]}  Qf5 {[%clk 0:01:39]} 31. Qxf5+ {[%clk 0:01:13]}  Kxf5 {[%clk 0:01:39]} 32. Re1 {[%clk 0:01:09]}  fxe5 {[%clk 0:01:36]} 33. Rde4 {[%clk 0:01:09]}  Rh6 {[%clk 0:01:27]} 34. g4+ {[%clk 0:01:06]}  Kf6 {[%clk 0:01:26]} 35. Rxe5 {[%clk 0:01:06]}  Re8 {[%clk 0:01:23]} 36. a4 {[%clk 0:01:04]}  Rh4 {[%clk 0:01:21]} 37. R5e4 {[%clk 0:01:04]}  Rh3 {[%clk 0:01:12]} 38. Rf1+ {[%clk 0:01:00]}  Kg6 {[%clk 0:01:12]} 39. Rfe1 {[%clk 0:01:00]}  Kf7 {[%clk 0:01:03]} 40. Rf1+ {[%clk 0:00:59]}  Ke7 {[%clk 0:01:02]} 41. Rfe1 {[%clk 0:00:54]}  Rh6 {[%clk 0:01:01]} 42. a5 {[%clk 0:00:54]}  bxa5 {[%clk 0:00:52]} 43. Re5 {[%clk 0:00:53]}  Kd6 {[%clk 0:00:46]} 44. Rxa5 {[%clk 0:00:52]}  Rh2 {[%clk 0:00:39]} 45. Rxa7 {[%clk 0:00:33]}  Rb8 {[%clk 0:00:36]} 46. Ra6+ {[%clk 0:00:32]}  Kc5 {[%clk 0:00:32]} 47. Ra2 {[%clk 0:00:24]}  Kd5 {[%clk 0:00:29]} 48. Ra5+ {[%clk 0:00:23]}  Kd4 {[%clk 0:00:29]} 49. Ra2 {[%clk 0:00:20]}  e5 {[%clk 0:00:26]} 50. Ra4+ {[%clk 0:00:18]}  Kd3 {[%clk 0:00:22]} 51. Ra3+ {[%clk 0:00:16]}  Kd2 {[%clk 0:00:21]} 52. Rc1 {[%clk 0:00:16]}  Rbh8 {[%clk 0:00:08]} 53. Rc2+ {[%clk 0:00:15]}  Kd1 {[%clk 0:00:08]} 54. Rd3+ {[%clk 0:00:15]}  Ke1 {[%clk 0:00:07]} 55. Re3+ {[%clk 0:00:15]}  Kf1 {[%clk 0:00:07]} 56. Rxh2 {[%clk 0:00:16]}  Rxh2 {[%clk 0:00:06]} 57. Rxe5 {[%clk 0:00:17]}  Rd2 {[%clk 0:00:03]} 58. Rxg5 {[%clk 0:00:17]}  Kf2 {[%clk 0:00:04]} 59. Rg8 {[%clk 0:00:18]}  Kf3 {[%clk 0:00:04]} 60. g5 {[%clk 0:00:18]}  Kf4 {[%clk 0:00:04]} 61. g6 {[%clk 0:00:18]}  Kf5 {[%clk 0:00:05]} 62. g7 {[%clk 0:00:19]}  Kf6 {[%clk 0:00:05]} 63. Ka2 {[%clk 0:00:18]}  Kf7 {[%clk 0:00:05]} 64. Rc8 {[%clk 0:00:16]}  Kxg7 {[%clk 0:00:05]} 65. Ka3 {[%clk 0:00:17]}  Kf7 {[%clk 0:00:05]} 66. b4 {[%clk 0:00:16]}  Ke7 {[%clk 0:00:05]} 67. b5 {[%clk 0:00:15]}  Kd7 {[%clk 0:00:05]} 68. Rc6 {[%clk 0:00:15]}  Rd4 {[%clk 0:00:05]} 69. Kb3 {[%clk 0:00:15]}  Re4 {[%clk 0:00:05]} 70. Kc3 {[%clk 0:00:13]}  Rg4 {[%clk 0:00:05]} 71. Kb3 {[%clk 0:00:13]}  Rh4 {[%clk 0:00:06]} 72. Rc3 {[%clk 0:00:13]}  Rg4 {[%clk 0:00:05]} 73. b6 {[%clk 0:00:12]}  Rg6 {[%clk 0:00:05]} 74. Rc7+ {[%clk 0:00:12]}  Kd8 {[%clk 0:00:05]} 75. Rb7 {[%clk 0:00:12]}  Kc8 {[%clk 0:00:05]} 76. Rc7+ {[%clk 0:00:09]}  Kb8 {[%clk 0:00:05]} 77. Rc4 {[%clk 0:00:10]}  Rxb6+ {[%clk 0:00:05]} 78. Rb4 {[%clk 0:00:10]}  Rxb4+ {[%clk 0:00:06]} 79. Kxb4 {[%clk 0:00:10]} 1/2-1/2


[Site "https://www.chess.com"]

[Event "Titled Tuesday Blitz August 08 Late 2023"]
[White "whiteglovethief"]
[Black "De Souza, Cristiano Gomes"]
[BlackFideId "2151758"]
[WhiteElo "2446"]
[BlackElo "2237"]
[Result "1-0"]
[Round "4"]
[TimeControl "180+1"]
[Date "2023.08.08"]
[WhiteClock "0:01:21"]
[BlackClock "0:00:58"]
[Board "148"]

1. d4 {[%clk 0:03:00]}  Nf6 {[%clk 0:02:21]} 2. c4 {[%clk 0:02:29]}  g6 {[%clk 0:02:19]} 3. Nc3 {[%clk 0:02:28]}  Bg7 {[%clk 0:02:17]} 4. g3 {[%clk 0:02:25]}  d6 {[%clk 0:02:16]} 5. Bg2 {[%clk 0:02:25]}  O-O {[%clk 0:02:15]} 6. h3 {[%clk 0:02:26]}  Nc6 {[%clk 0:02:14]} 7. Nf3 {[%clk 0:02:23]}  Bf5 {[%clk 0:02:09]} 8. O-O {[%clk 0:02:18]}  Ne4 {[%clk 0:02:09]} 9. g4 {[%clk 0:02:14]}  Nxc3 {[%clk 0:02:05]} 10. bxc3 {[%clk 0:02:15]}  Be4 {[%clk 0:02:05]} 11. Re1 {[%clk 0:02:10]}  e5 {[%clk 0:02:01]} 12. e3 {[%clk 0:02:07]}  exd4 {[%clk 0:02:00]} 13. cxd4 {[%clk 0:02:05]}  d5 {[%clk 0:01:57]} 14. Nd2 {[%clk 0:02:02]}  Bxg2 {[%clk 0:01:56]} 15. Kxg2 {[%clk 0:02:03]}  dxc4 {[%clk 0:01:54]} 16. Bb2 {[%clk 0:01:59]}  a6 {[%clk 0:01:51]} 17. Qf3 {[%clk 0:01:58]}  Qd7 {[%clk 0:01:43]} 18. Nxc4 {[%clk 0:01:57]}  b5 {[%clk 0:01:35]} 19. Ne5 {[%clk 0:01:57]}  Nxe5 {[%clk 0:01:35]} 20. dxe5 {[%clk 0:01:58]}  Qe6 {[%clk 0:01:34]} 21. Rac1 {[%clk 0:01:56]}  Bxe5 {[%clk 0:01:31]} 22. Rc6 {[%clk 0:01:55]}  Qe7 {[%clk 0:01:28]} 23. Bxe5 {[%clk 0:01:49]}  Qxe5 {[%clk 0:01:28]} 24. Rec1 {[%clk 0:01:49]}  Rfc8 {[%clk 0:01:26]} 25. Rxc7 {[%clk 0:01:49]}  Rxc7 {[%clk 0:01:25]} 26. Qxa8+ {[%clk 0:01:48]}  Kg7 {[%clk 0:01:20]} 27. Rxc7 {[%clk 0:01:48]}  Qxc7 {[%clk 0:01:19]} 28. Qxa6 {[%clk 0:01:48]}  Qc4 {[%clk 0:01:19]} 29. Qa8 {[%clk 0:01:44]}  b4 {[%clk 0:01:18]} 30. e4 {[%clk 0:01:38]}  b3 {[%clk 0:01:16]} 31. axb3 {[%clk 0:01:36]}  Qxb3 {[%clk 0:01:16]} 32. Qd5 {[%clk 0:01:36]}  Qxd5 {[%clk 0:01:14]} 33. exd5 {[%clk 0:01:34]}  Kf6 {[%clk 0:01:15]} 34. f4 {[%clk 0:01:33]}  g5 {[%clk 0:01:15]} 35. Kf3 {[%clk 0:01:30]}  h6 {[%clk 0:01:13]} 36. fxg5+ {[%clk 0:01:26]}  hxg5 {[%clk 0:01:13]} 37. Ke4 {[%clk 0:01:27]}  Ke7 {[%clk 0:01:03]} 38. Ke5 {[%clk 0:01:21]}  f6+ {[%clk 0:01:00]} 39. Kf5 {[%clk 0:01:21]}  Kd6 {[%clk 0:01:01]} 40. Kxf6 {[%clk 0:01:20]}  Kxd5 {[%clk 0:00:58]} 41. Kxg5 {[%clk 0:01:21]} 1-0


[Site "https://www.chess.com"]

[Event "Titled Tuesday Blitz August 08 Late 2023"]
[White "Sarkar, Justin"]
[Black "Guerrero Vargas, Andres Jesus"]
[WhiteFideId "2010011"]
[BlackFideId "3902048"]
[WhiteElo "2233"]
[BlackElo "2443"]
[Result "1-0"]
[Round "4"]
[TimeControl "180+1"]
[Date "2023.08.08"]
[WhiteClock "0:00:09"]
[BlackClock "0:00:01"]
[Board "149"]

1. d4 {[%clk 0:02:55]}  Nf6 {[%clk 0:02:59]} 2. c4 {[%clk 0:02:55]}  e5 {[%clk 0:02:59]} 3. dxe5 {[%clk 0:02:51]}  Ng4 {[%clk 0:02:59]} 4. Nc3 {[%clk 0:02:36]}  Nxe5 {[%clk 0:02:49]} 5. e3 {[%clk 0:02:35]}  Bb4 {[%clk 0:02:46]} 6. Bd2 {[%clk 0:02:27]}  a5 {[%clk 0:02:44]} 7. a3 {[%clk 0:02:15]}  Bc5 {[%clk 0:02:43]} 8. b4 {[%clk 0:01:53]}  axb4 {[%clk 0:02:25]} 9. Ne4 {[%clk 0:01:52]}  Be7 {[%clk 0:01:58]} 10. axb4 {[%clk 0:01:49]}  Rxa1 {[%clk 0:01:59]} 11. Qxa1 {[%clk 0:01:49]}  d6 {[%clk 0:01:50]} 12. f4 {[%clk 0:01:47]}  Ng6 {[%clk 0:01:42]} 13. Qxg7 {[%clk 0:01:38]}  f5 {[%clk 0:01:11]} 14. Ng3 {[%clk 0:01:29]}  Bf6 {[%clk 0:00:59]} 15. Qh6 {[%clk 0:01:27]}  Qe7 {[%clk 0:00:49]} 16. Nh5 {[%clk 0:01:09]}  Nd7 {[%clk 0:00:20]} 17. Nf3 {[%clk 0:01:05]}  Rg8 {[%clk 0:00:16]} 18. Bd3 {[%clk 0:00:59]}  Ndf8 {[%clk 0:00:16]} 19. Nxf6+ {[%clk 0:00:52]}  Qxf6 {[%clk 0:00:16]} 20. O-O {[%clk 0:00:52]}  Nd7 {[%clk 0:00:13]} 21. e4 {[%clk 0:00:45]}  fxe4 {[%clk 0:00:11]} 22. Bxe4 {[%clk 0:00:45]}  Ne7 {[%clk 0:00:06]} 23. Qh5+ {[%clk 0:00:33]}  Qf7 {[%clk 0:00:06]} 24. Qxf7+ {[%clk 0:00:27]}  Kxf7 {[%clk 0:00:07]} 25. Bxh7 {[%clk 0:00:27]}  Rg7 {[%clk 0:00:07]} 26. Ng5+ {[%clk 0:00:24]}  Ke8 {[%clk 0:00:06]} 27. Bc3 {[%clk 0:00:24]}  Rg6 {[%clk 0:00:03]} 28. Bxg6+ {[%clk 0:00:22]}  Nxg6 {[%clk 0:00:04]} 29. f5 {[%clk 0:00:21]}  Nge5 {[%clk 0:00:03]} 30. f6 {[%clk 0:00:21]}  Kf8 {[%clk 0:00:03]} 31. f7 {[%clk 0:00:20]}  Kg7 {[%clk 0:00:04]} 32. Ne6+ {[%clk 0:00:19]}  Kh7 {[%clk 0:00:02]} 33. Bxe5 {[%clk 0:00:18]}  dxe5 {[%clk 0:00:03]} 34. f8=Q {[%clk 0:00:15]}  Nxf8 {[%clk 0:00:04]} 35. Nxf8+ {[%clk 0:00:16]}  Kg7 {[%clk 0:00:04]} 36. h4 {[%clk 0:00:15]}  e4 {[%clk 0:00:04]} 37. h5 {[%clk 0:00:14]}  e3 {[%clk 0:00:05]} 38. Ng6 {[%clk 0:00:14]}  Bg4 {[%clk 0:00:04]} 39. Nf4 {[%clk 0:00:13]}  Kh6 {[%clk 0:00:03]} 40. Re1 {[%clk 0:00:13]}  Kg5 {[%clk 0:00:03]} 41. g3 {[%clk 0:00:13]}  e2 {[%clk 0:00:02]} 42. Nxe2 {[%clk 0:00:13]}  Bxh5 {[%clk 0:00:02]} 43. Nf4 {[%clk 0:00:13]}  Bg4 {[%clk 0:00:03]} 44. Kf2 {[%clk 0:00:13]}  Kf6 {[%clk 0:00:03]} 45. Nd5+ {[%clk 0:00:13]}  Kg5 {[%clk 0:00:03]} 46. Nxc7 {[%clk 0:00:12]}  b6 {[%clk 0:00:03]} 47. c5 {[%clk 0:00:13]}  bxc5 {[%clk 0:00:03]} 48. bxc5 {[%clk 0:00:13]}  Kf6 {[%clk 0:00:04]} 49. c6 {[%clk 0:00:13]}  Kf7 {[%clk 0:00:05]} 50. Nd5 {[%clk 0:00:13]}  Bf5 {[%clk 0:00:05]} 51. Re5 {[%clk 0:00:12]}  Bc8 {[%clk 0:00:05]} 52. c7 {[%clk 0:00:11]}  Bb7 {[%clk 0:00:05]} 53. Nb6 {[%clk 0:00:11]}  Kf8 {[%clk 0:00:05]} 54. Rc5 {[%clk 0:00:11]}  Kf7 {[%clk 0:00:05]} 55. Ra5 {[%clk 0:00:09]}  Bc8 {[%clk 0:00:01]} 56. Nxc8 {[%clk 0:00:09]} 1-0


[Site "https://www.chess.com"]

[Event "Titled Tuesday Blitz August 08 Late 2023"]
[White "WindWhistler11"]
[Black "De Arruda, Leandro Formes"]
[BlackFideId "22722009"]
[WhiteElo "2430"]
[BlackElo "2219"]
[Result "1-0"]
[Round "4"]
[TimeControl "180+1"]
[Date "2023.08.08"]
[WhiteClock "0:02:35"]
[BlackClock "0:00:29"]
[Board "150"]

1. Nf3 {[%clk 0:02:59]}  d5 {[%clk 0:02:59]} 2. g3 {[%clk 0:02:59]}  Nf6 {[%clk 0:03:00]} 3. c4 {[%clk 0:02:59]}  c6 {[%clk 0:03:00]} 4. Bg2 {[%clk 0:02:58]}  e6 {[%clk 0:03:00]} 5. b3 {[%clk 0:02:58]}  Be7 {[%clk 0:03:00]} 6. O-O {[%clk 0:02:59]}  O-O {[%clk 0:03:01]} 7. Bb2 {[%clk 0:02:59]}  Nbd7 {[%clk 0:03:01]} 8. Qc2 {[%clk 0:03:00]}  Ne4 {[%clk 0:03:00]} 9. d3 {[%clk 0:03:00]}  Nef6 {[%clk 0:03:00]} 10. Nbd2 {[%clk 0:03:01]}  b6 {[%clk 0:02:59]} 11. e4 {[%clk 0:03:01]}  Bb7 {[%clk 0:02:55]} 12. e5 {[%clk 0:03:01]}  Ne8 {[%clk 0:02:55]} 13. Rfe1 {[%clk 0:03:02]}  Rc8 {[%clk 0:02:54]} 14. h4 {[%clk 0:03:02]}  a5 {[%clk 0:02:32]} 15. Nf1 {[%clk 0:03:00]}  c5 {[%clk 0:02:24]} 16. N1h2 {[%clk 0:03:00]}  d4 {[%clk 0:02:22]} 17. Bc1 {[%clk 0:02:59]}  Qc7 {[%clk 0:02:20]} 18. Bf4 {[%clk 0:02:59]}  g6 {[%clk 0:02:14]} 19. h5 {[%clk 0:02:59]}  Ng7 {[%clk 0:02:14]} 20. h6 {[%clk 0:02:56]}  Nf5 {[%clk 0:02:07]} 21. Qd2 {[%clk 0:02:56]}  Rfd8 {[%clk 0:01:58]} 22. Bg5 {[%clk 0:02:56]}  Re8 {[%clk 0:01:28]} 23. g4 {[%clk 0:02:53]}  Bxf3 {[%clk 0:01:13]} 24. Nxf3 {[%clk 0:02:48]}  Qd8 {[%clk 0:01:00]} 25. gxf5 {[%clk 0:02:45]}  exf5 {[%clk 0:00:57]} 26. e6 {[%clk 0:02:39]}  fxe6 {[%clk 0:00:45]} 27. Rxe6 {[%clk 0:02:37]}  Bxg5 {[%clk 0:00:42]} 28. Rxe8+ {[%clk 0:02:36]}  Qxe8 {[%clk 0:00:41]} 29. Nxg5 {[%clk 0:02:36]}  Qf8 {[%clk 0:00:29]} 30. Bd5+ {[%clk 0:02:35]} 1-0


[Site "https://www.chess.com"]

[Event "Titled Tuesday Blitz August 08 Late 2023"]
[White "Nilsen, Tobias Lang"]
[Black "Oliveira, Tiago Batista"]
[WhiteFideId "1521624"]
[BlackFideId "2108291"]
[WhiteElo "2427"]
[BlackElo "2190"]
[Result "1-0"]
[Round "4"]
[TimeControl "180+1"]
[Date "2023.08.08"]
[WhiteClock "0:01:52"]
[BlackClock "0:00:00"]
[Board "153"]

1. f4 {[%clk 0:03:00]}  Nf6 {[%clk 0:02:59]} 2. Nf3 {[%clk 0:03:00]}  d5 {[%clk 0:02:59]} 3. g3 {[%clk 0:03:00]}  g6 {[%clk 0:02:58]} 4. Bg2 {[%clk 0:03:01]}  Bg7 {[%clk 0:02:58]} 5. O-O {[%clk 0:03:02]}  O-O {[%clk 0:02:57]} 6. d3 {[%clk 0:03:03]}  c5 {[%clk 0:02:53]} 7. Nc3 {[%clk 0:03:03]}  d4 {[%clk 0:02:52]} 8. Na4 {[%clk 0:03:03]}  Nbd7 {[%clk 0:02:38]} 9. c4 {[%clk 0:03:03]}  Rb8 {[%clk 0:02:36]} 10. a3 {[%clk 0:03:00]}  a6 {[%clk 0:02:34]} 11. b4 {[%clk 0:02:58]}  b6 {[%clk 0:02:25]} 12. Rb1 {[%clk 0:02:58]}  Bb7 {[%clk 0:01:50]} 13. Kh1 {[%clk 0:02:53]}  h6 {[%clk 0:01:32]} 14. e4 {[%clk 0:02:53]}  dxe3 {[%clk 0:01:28]} 15. Bxe3 {[%clk 0:02:52]}  Ng4 {[%clk 0:01:27]} 16. Bg1 {[%clk 0:02:52]}  Qc7 {[%clk 0:01:08]} 17. Rc1 {[%clk 0:02:44]}  Rfd8 {[%clk 0:01:07]} 18. Qe2 {[%clk 0:02:41]}  e5 {[%clk 0:01:04]} 19. fxe5 {[%clk 0:02:40]}  Ngxe5 {[%clk 0:01:03]} 20. Nxe5 {[%clk 0:02:36]}  Bxg2+ {[%clk 0:00:59]} 21. Qxg2 {[%clk 0:02:35]}  Bxe5 {[%clk 0:00:54]} 22. bxc5 {[%clk 0:02:27]}  Nxc5 {[%clk 0:00:48]} 23. Nxc5 {[%clk 0:02:26]}  bxc5 {[%clk 0:00:47]} 24. Qe4 {[%clk 0:02:19]}  Rb2 {[%clk 0:00:40]} 25. Rb1 {[%clk 0:02:16]}  Rdb8 {[%clk 0:00:39]} 26. Rxb2 {[%clk 0:02:15]}  Rxb2 {[%clk 0:00:36]} 27. Qa8+ {[%clk 0:02:06]}  Kg7 {[%clk 0:00:34]} 28. Qd5 {[%clk 0:02:01]}  Bf6 {[%clk 0:00:14]} 29. Bxc5 {[%clk 0:01:56]}  Rd2 {[%clk 0:00:08]} 30. Bd4 {[%clk 0:01:55]}  Bxd4 {[%clk 0:00:07]} 31. Qxd4+ {[%clk 0:01:56]}  Kh7 {[%clk 0:00:05]} 32. Qd5 {[%clk 0:01:55]}  f5 {[%clk 0:00:04]} 33. Rb1 {[%clk 0:01:53]}  Qe7 {[%clk 0:00:00]} 34. Rb7 {[%clk 0:01:52]} 1-0


[Site "https://www.chess.com"]

[Event "Titled Tuesday Blitz August 08 Late 2023"]
[White "Adel, Sara"]
[Black "Kupervaser, Erez"]
[WhiteFideId "10616764"]
[BlackFideId "2814587"]
[WhiteElo "2168"]
[BlackElo "2423"]
[Result "0-1"]
[Round "4"]
[TimeControl "180+1"]
[Date "2023.08.08"]
[WhiteClock "0:00:20"]
[BlackClock "0:00:56"]
[Board "155"]

1. e4 {[%clk 0:02:54]}  c5 {[%clk 0:02:59]} 2. Nc3 {[%clk 0:02:53]}  Nc6 {[%clk 0:02:59]} 3. Bc4 {[%clk 0:02:52]}  e6 {[%clk 0:02:55]} 4. Nf3 {[%clk 0:02:52]}  a6 {[%clk 0:02:56]} 5. d4 {[%clk 0:02:52]}  cxd4 {[%clk 0:02:55]} 6. Nxd4 {[%clk 0:02:52]}  Qc7 {[%clk 0:02:49]} 7. Be3 {[%clk 0:02:51]}  Bb4 {[%clk 0:02:41]} 8. Qd2 {[%clk 0:02:44]}  Nge7 {[%clk 0:02:38]} 9. a3 {[%clk 0:02:44]}  Bxc3 {[%clk 0:02:21]} 10. Qxc3 {[%clk 0:02:29]}  Ne5 {[%clk 0:02:21]} 11. Bf4 {[%clk 0:02:23]}  Qxc4 {[%clk 0:02:18]} 12. Bxe5 {[%clk 0:02:23]}  Qxc3+ {[%clk 0:02:18]} 13. bxc3 {[%clk 0:02:23]}  f6 {[%clk 0:02:19]} 14. Bd6 {[%clk 0:02:23]}  b6 {[%clk 0:02:10]} 15. O-O-O {[%clk 0:02:22]}  Bb7 {[%clk 0:02:09]} 16. Rhe1 {[%clk 0:02:22]}  Rc8 {[%clk 0:02:09]} 17. Kb2 {[%clk 0:02:14]}  b5 {[%clk 0:02:06]} 18. f4 {[%clk 0:02:04]}  Rc4 {[%clk 0:02:05]} 19. Re3 {[%clk 0:01:58]}  Kf7 {[%clk 0:02:00]} 20. g4 {[%clk 0:01:57]}  Nc8 {[%clk 0:01:55]} 21. f5 {[%clk 0:01:31]}  Nxd6 {[%clk 0:01:42]} 22. Nxe6 {[%clk 0:01:30]}  Rc6 {[%clk 0:01:38]} 23. e5 {[%clk 0:01:26]}  Nc4+ {[%clk 0:01:38]} 24. Kc1 {[%clk 0:01:18]}  dxe6 {[%clk 0:01:05]} 25. Rd7+ {[%clk 0:01:18]}  Ke8 {[%clk 0:01:05]} 26. Rxb7 {[%clk 0:00:33]}  Nxe3 {[%clk 0:01:04]} 27. Rb8+ {[%clk 0:00:31]}  Kf7 {[%clk 0:01:04]} 28. Rb7+ {[%clk 0:00:20]}  Ke8 {[%clk 0:01:04]} 29. Rb8+ {[%clk 0:00:20]}  Kd7 {[%clk 0:01:05]} 30. fxe6+ {[%clk 0:00:19]}  Rxe6 {[%clk 0:01:03]} 31. Rxh8 {[%clk 0:00:19]}  Rxe5 {[%clk 0:01:03]} 32. Rxh7 {[%clk 0:00:20]}  Re7 {[%clk 0:01:03]} 33. g5 {[%clk 0:00:19]}  fxg5 {[%clk 0:01:02]} 34. Rh5 {[%clk 0:00:20]}  Nc4 {[%clk 0:00:57]} 35. Rxg5 {[%clk 0:00:20]}  Re1# {[%clk 0:00:56]} 0-1


[Site "https://www.chess.com"]